fUSD/lending_fUSD_20260307
["ID","MTS","AMOUNT","RATE_DAILY","PERIOD"]
[407956036,1772926244257,-500.0,0.00043835,120]
[407956037,1772926244266,-500.0,0.00043835,120]
[407956038,1772926244275,-500.0,0.00043835,120]
[407956039,1772926244285,-500.0,0.00043835,120]
[407956040,1772926244294,-500.0,0.00043835,120]
[407956041,1772926244304,-500.0,0.00043835,120]
[407956042,1772926244313,-500.0,0.00043835,120]
[407956043,1772926244322,-500.0,0.00043835,120]
[407956044,1772926244332,-500.0,0.00043835,120]
[407956045,1772926244342,-500.0,0.00043835,120]
[407956046,1772926244351,-500.0,0.00043835,120]
[407956047,1772926244360,-500.0,0.00043835,120]
[407956048,1772926244370,-500.0,0.00043835,120]
[407956049,1772926244379,-500.0,0.00043835,120]
[407956050,1772926244388,-500.0,0.00043835,120]
[407956051,1772926244398,-500.0,0.00043835,120]
[407956052,1772926244407,-500.0,0.00043835,120]
[407956053,1772926244417,-500.0,0.00043835,120]
[407956054,1772926244426,-500.0,0.00043835,120]
[407956055,1772926244436,-500.0,0.00043835,120]
[407956056,1772926244445,-500.0,0.00043835,120]
[407956057,1772926244455,-500.0,0.00043835,120]
[407956058,1772926244464,-500.0,0.00043835,120]
[407956059,1772926244473,-500.0,0.00043835,120]
[407956060,1772926244486,-500.0,0.00043835,120]
[407956061,1772926244495,-500.0,0.00043835,120]
[407956062,1772926244504,-500.0,0.00043835,120]
[407956063,1772926244513,-500.0,0.00043835,120]
[407956064,1772926244522,-500.0,0.00043835,120]
[407956065,1772926244532,-500.0,0.00043835,120]
[407956066,1772926244541,-500.0,0.00043835,120]
[407956067,1772926244550,-500.0,0.00043835,120]
[407956068,1772926244560,-500.0,0.00043835,120]
[407956069,1772926244569,-500.0,0.00043835,120]
[407956070,1772926244579,-500.0,0.00043835,120]
[407956071,1772926244588,-500.0,0.00043835,120]
[407956072,1772926244598,-500.0,0.00043835,120]
[407956073,1772926244607,-500.0,0.00043835,120]
[407956074,1772926244617,-500.0,0.00043835,120]
[407956075,1772926244627,-500.0,0.00043835,120]
[407956076,1772926244637,-500.0,0.00043835,120]
[407956077,1772926244646,-500.0,0.00043835,120]
[407956078,1772926244655,-500.0,0.00043835,120]
[407956079,1772926244666,-500.0,0.00043835,120]
[407956080,1772926244675,-500.0,0.00043835,120]
[407956081,1772926244685,-500.0,0.00043835,120]
[407956082,1772926244694,-500.0,0.00043835,120]
[407956083,1772926244703,-500.0,0.00043835,120]
[407956084,1772926244712,-500.0,0.00043835,120]
[407956085,1772926244722,-500.0,0.00043835,120]
[407956086,1772926244732,-500.0,0.00043835,120]
[407956087,1772926244741,-500.0,0.00043835,120]
[407956088,1772926244751,-500.0,0.00043835,120]
[407956089,1772926244761,-500.0,0.00043835,120]
[407956090,1772926244770,-500.0,0.00043835,120]
[407956091,1772926244779,-500.0,0.00043835,120]
[407956092,1772926244789,-500.0,0.00043835,120]
[407956093,1772926244798,-500.0,0.00043835,120]
[407956094,1772926244807,-500.0,0.00043835,120]
[407956095,1772926244817,-500.0,0.00043835,120]
[407956096,1772926244826,-500.0,0.00043835,120]
[407956097,1772926244835,-500.0,0.00043835,120]
[407956098,1772926244845,-500.0,0.00043835,120]
[407956099,1772926244855,-500.0,0.00043835,120]
[407956100,1772926244864,-500.0,0.00043835,120]
[407956101,1772926244873,-500.0,0.00043835,120]
[407956102,1772926244886,-500.0,0.00043835,120]
[407956103,1772926244896,-500.0,0.00043835,120]
[407956104,1772926244906,-500.0,0.00043835,120]
[407956105,1772926244915,-500.0,0.00043835,120]
[407956106,1772926244924,-500.0,0.00043835,120]
[407956107,1772926244934,-500.0,0.00043835,120]
[407956108,1772926244943,-500.0,0.00043835,120]
[407956109,1772926244953,-500.0,0.00043835,120]
[407956110,1772926244962,-500.0,0.00043835,120]
[407956111,1772926244972,-500.0,0.00043835,120]
[407956112,1772926244982,-500.0,0.00043835,120]
[407956113,1772926244991,-500.0,0.00043835,120]
[407956114,1772926245000,-500.0,0.00043835,120]
[407956115,1772926245009,-500.0,0.00043835,120]
[407956116,1772926245019,-500.0,0.00043835,120]
[407956117,1772926245028,-500.0,0.00043835,120]
[407956118,1772926245037,-500.0,0.00043835,120]
[407956119,1772926245046,-500.0,0.00043835,120]
[407956120,1772926245055,-500.0,0.00043835,120]
[407956121,1772926245065,-500.0,0.00043835,120]
[407956122,1772926245074,-500.0,0.00043835,120]
[407956123,1772926245083,-500.0,0.00043835,120]
[407956124,1772926245092,-500.0,0.00043835,120]
[407956125,1772926245101,-500.0,0.00043835,120]
[407956126,1772926245110,-500.0,0.00043835,120]
[407956127,1772926245120,-500.0,0.00043835,120]
[407956128,1772926245129,-500.0,0.00043835,120]
[407956129,1772926245138,-500.0,0.00043835,120]
[407956130,1772926245147,-500.0,0.00043835,120]
[407956131,1772926245156,-500.0,0.00043835,120]
[407956132,1772926245166,-500.0,0.00043835,120]
[407956133,1772926245175,-500.0,0.00043835,120]
[407956134,1772926245184,-500.0,0.00043835,120]
[407956135,1772926245193,-500.0,0.00043835,120]
[407956136,1772926245202,-500.0,0.00043835,120]
[407956137,1772926245211,-500.0,0.00043835,120]
[407956138,1772926245222,-500.0,0.00043835,120]
[407956139,1772926245232,-500.0,0.00043835,120]
[407956140,1772926245242,-500.0,0.00043835,120]
[407956141,1772926245251,-500.0,0.00043835,120]
[407956142,1772926245260,-500.0,0.00043835,120]
[407956143,1772926245270,-500.0,0.00043835,120]
[407956144,1772926245283,-500.0,0.00043835,120]
[407956145,1772926245292,-500.0,0.00043835,120]
[407956146,1772926245301,-500.0,0.00043835,120]
[407956147,1772926245316,-500.0,0.00043835,120]
[407956148,1772926245326,-500.0,0.00043835,120]
[407956149,1772926245335,-500.0,0.00043835,120]
[407956150,1772926245344,-500.0,0.00043835,120]
[407956151,1772926245354,-500.0,0.00043835,120]
[407956152,1772926245363,-500.0,0.00043835,120]
[407956153,1772926245374,-500.0,0.00043835,120]
[407956154,1772926245384,-500.0,0.00043835,120]
[407956155,1772926245394,-500.0,0.00043835,120]
[407956156,1772926245403,-500.0,0.00043835,120]
[407956157,1772926245413,-500.0,0.00043835,120]
[407956158,1772926245422,-500.0,0.00043835,120]
[407956159,1772926245431,-500.0,0.00043835,120]
[407956160,1772926245440,-500.0,0.00043835,120]
[407956161,1772926245449,-500.0,0.00043835,120]
[407956162,1772926245459,-500.0,0.00043835,120]
[407956163,1772926245468,-500.0,0.00043835,120]
[407956164,1772926245478,-500.0,0.00043835,120]
[407956165,1772926245487,-500.0,0.00043835,120]
[407956166,1772926245496,-500.0,0.00043835,120]
[407956167,1772926245505,-500.0,0.00043835,120]
[407956168,1772926245515,-500.0,0.00043835,120]
[407956169,1772926245524,-500.0,0.00043835,120]
[407956170,1772926245534,-500.0,0.00043835,120]
[407956171,1772926245543,-500.0,0.00043835,120]
[407956172,1772926245552,-500.0,0.00043835,120]
[407956173,1772926245561,-500.0,0.00043835,120]
[407956174,1772926245572,-597.0,0.00043835,120]
[407956175,1772926245582,-500.0,0.00043835,120]
[407956176,1772926245592,-500.0,0.00043835,120]
[407956177,1772926245601,-500.0,0.00043835,120]
[407956178,1772926245611,-500.0,0.00043835,120]
[407956179,1772926245620,-500.0,0.00043835,120]
[407956180,1772926245629,-500.0,0.00043835,120]
[407956181,1772926245638,-500.0,0.00043835,120]
[407956182,1772926245648,-500.0,0.00043835,120]
[407956183,1772926245658,-500.0,0.00043835,120]
[407956184,1772926245671,-500.0,0.00043835,120]
[407956185,1772926245680,-500.0,0.00043835,120]
[407956186,1772926245690,-500.0,0.00043835,120]
[407956187,1772926245700,-500.0,0.00043835,120]
[407956188,1772926245710,-500.0,0.00043835,120]
[407956189,1772926245719,-500.0,0.00043835,120]
[407956190,1772926245728,-830.0,0.00043835,120]
[407956191,1772926245737,-500.0,0.00043835,120]
[407956192,1772926245747,-500.0,0.00043835,120]
[407956193,1772926245755,-500.0,0.00043835,120]
[407956194,1772926245765,-500.0,0.00043835,120]
[407956195,1772926245776,-500.0,0.00043835,120]
[407956196,1772926245787,-500.0,0.00043835,120]
[407956197,1772926245797,-500.0,0.00043835,120]
[407956198,1772926245808,-500.0,0.00043835,120]
[407956199,1772926245818,-500.0,0.00043835,120]
[407956201,1772926245827,-500.0,0.00043835,120]
[407956203,1772926245836,-500.0,0.00043835,120]
[407956204,1772926245847,-500.0,0.00043835,120]
[407956205,1772926245857,-500.0,0.00043835,120]
[407956206,1772926245868,-500.0,0.00043835,120]
[407956207,1772926245879,-500.0,0.00043835,120]
[407956208,1772926245889,-500.0,0.00043835,120]
[407956209,1772926245901,-500.0,0.00043835,120]
[407956210,1772926245911,-500.0,0.00043835,120]
[407956211,1772926245921,-500.0,0.00043835,120]
[407956212,1772926245930,-500.0,0.00043835,120]
[407956213,1772926245939,-500.0,0.00043835,120]
[407956214,1772926245948,-500.0,0.00043835,120]
[407956215,1772926245957,-500.0,0.00043835,120]
[407956216,1772926245967,-500.0,0.00043835,120]
[407956217,1772926245976,-500.0,0.00043835,120]
[407956218,1772926245986,-500.0,0.00043835,120]
[407956219,1772926245995,-500.0,0.00043835,120]
[407956220,1772926246004,-500.0,0.00043835,120]
[407956221,1772926246013,-500.0,0.00043835,120]
[407956222,1772926246022,-500.0,0.00043835,120]
[407956223,1772926246031,-500.0,0.00043835,120]
[407956224,1772926246041,-500.0,0.00043835,120]
[407956225,1772926246049,-500.0,0.00043835,120]
[407956226,1772926246059,-800.0,0.00043836,30]
[407956227,1772926246068,-837.17636583,0.00044045,14]
[407956228,1772926246078,-500.0,0.00044246,120]
[407956229,1772926246088,-150.0,0.00044281,120]
[407956230,1772926246097,-541.9,0.00044643,120]
[407956231,1772926246213,-500.0,0.00044657,120]
[407956232,1772926246224,-4654.60097481,0.000447,28]
[407956233,1772926246237,-242.054553,0.00044742,30]
[407956234,1772926246246,-1059.3377141,0.00044926,2]
[407956235,1772926246255,-560.36,0.00045,14]
[407956236,1772926246264,-1079.85253431,0.00045,30]
[407956237,1772926246273,-500.0,0.00045068,120]
[407956238,1772926246282,-150.0,0.00045096,60]
[407956239,1772926246291,-500.0,0.00045096,60]
[407956241,1772926246300,-151.12456673,0.00045096,60]
[407956242,1772926246309,-150.0,0.00045096,23]
[407956243,1772926246318,-500.0,0.00045096,60]
[407956244,1772926246332,-500.0,0.00045096,60]
[407956245,1772926246341,-500.0,0.00045096,60]
[407956246,1772926246350,-500.0,0.00045096,60]
[407956247,1772926246359,-500.0,0.00045096,60]
[407956248,1772926246368,-150.0,0.00045096,2]
[407956249,1772926246378,-150.0,0.00045096,60]
[407956250,1772926246388,-150.0,0.00045096,2]
[407956251,1772926246405,-500.0,0.00045096,60]
[407956252,1772926246420,-500.0,0.00045096,60]
[407956253,1772926246430,-500.0,0.00045096,60]
[407956254,1772926246440,-500.0,0.00045096,60]
[407956255,1772926246450,-500.0,0.00045096,60]
[407956256,1772926246459,-214.70164119,0.00045096,60]
[407956257,1772926246469,-500.0,0.00045096,60]
[407956258,1772926246480,-500.0,0.00045096,60]
[407956259,1772926246490,-150.0,0.00045096,30]
[407956260,1772926246500,-150.0,0.00045096,60]
[407956261,1772926246509,-500.0,0.00045096,60]
[407956262,1772926246519,-150.0,0.00045096,60]
[407956263,1772926246529,-150.0,0.00045096,60]
[407956264,1772926246539,-150.0,0.00045096,60]
[407956265,1772926246549,-150.0,0.00045096,60]
[407956266,1772926246559,-150.0,0.00045096,60]
[407956267,1772926246568,-150.0,0.00045096,60]
[407956268,1772926246578,-150.0,0.00045096,60]
[407956269,1772926246588,-150.0,0.00045096,60]
[407956270,1772926246597,-150.0,0.00045096,60]
[407956271,1772926246607,-500.0,0.00045096,2]
[407956272,1772926246616,-150.0,0.00045151,60]
[407956273,1772926246625,-500.0,0.00045151,60]
[407956274,1772926246635,-150.0,0.00045151,23]
[407956275,1772926246644,-500.0,0.00045151,60]
[407956276,1772926246654,-500.0,0.00045151,60]
[407956277,1772926246663,-500.0,0.00045151,60]
[407956278,1772926246673,-500.0,0.00045151,60]
[407956279,1772926246683,-500.0,0.00045151,60]
[407956280,1772926246693,-150.0,0.00045151,60]
[407956281,1772926246703,-500.0,0.00045151,60]
[407956282,1772926246713,-500.0,0.00045151,60]
[407956283,1772926246723,-500.0,0.00045151,60]
[407956284,1772926246733,-500.0,0.00045151,60]
[407956285,1772926246743,-500.0,0.00045151,60]
[407956286,1772926246753,-500.0,0.00045151,60]
[407956287,1772926246763,-500.0,0.00045151,60]
[407956288,1772926246772,-150.0,0.00045151,30]
[407956289,1772926246782,-150.0,0.00045151,60]
[407956290,1772926246791,-500.0,0.00045151,60]
[407956291,1772926246801,-150.0,0.00045151,60]
[407956292,1772926246810,-150.0,0.00045151,60]
[407956293,1772926246819,-150.0,0.00045151,60]
[407956294,1772926246829,-200.0,0.00045151,60]
[407956295,1772926246839,-150.0,0.00045151,60]
[407956296,1772926246848,-150.04993963,0.00045151,60]
[407956297,1772926246858,-500.0,0.00045151,2]
[407956298,1772926246868,-39729.83796681,0.00045176,15]
[407956299,1772926246877,-2000.0,0.000452,2]
[407956300,1772926246887,-150.0,0.00045206,60]
[407956301,1772926246896,-500.0,0.00045206,60]
[407956302,1772926246905,-200.0,0.00045206,23]
[407956303,1772926246914,-552.0,0.00045206,60]
[407956304,1772926246924,-500.0,0.00045206,60]
[407956305,1772926246933,-350.0,0.00045206,60]
[407956306,1772926246943,-350.0,0.00045206,60]
[407956307,1772926246952,-500.0,0.00045206,60]
[407956308,1772926246962,-150.0,0.00045206,60]
[407956309,1772926246972,-500.0,0.00045206,60]
[407956310,1772926246982,-500.0,0.00045206,60]
[407956311,1772926246992,-500.62265494,0.00045206,60]
[407956312,1772926247001,-500.0,0.00045206,60]
[407956313,1772926247011,-500.0,0.00045206,60]
[407956314,1772926247020,-500.0,0.00045206,60]
[407956315,1772926247030,-500.0,0.00045206,60]
[407956316,1772926247040,-150.0,0.00045206,30]
[407956317,1772926247050,-150.0,0.00045206,60]
[407956318,1772926247059,-500.0,0.00045206,60]
[407956319,1772926247069,-200.0,0.00045206,60]
[407956320,1772926247079,-200.0,0.00045206,60]
[407956321,1772926247088,-190.26705956,0.00045206,60]
[407956322,1772926247097,-500.0,0.00045206,2]
[407956323,1772926247107,-150.0,0.0004526,60]
[407956324,1772926247116,-500.0,0.0004526,60]
[407956325,1772926247126,-500.0,0.0004526,60]
[407956326,1772926247136,-500.0,0.0004526,60]
[407956327,1772926247145,-150.0,0.0004526,60]
[407956328,1772926247155,-500.0,0.0004526,60]
[407956329,1772926247165,-150.0,0.0004526,60]
[407956330,1772926247174,-409.93316597,0.0004526,60]
[407956331,1772926247183,-500.0,0.0004526,60]
[407956332,1772926247192,-500.0,0.0004526,60]
[407956333,1772926247202,-212.54,0.0004526,60]
[407956334,1772926247211,-150.0,0.0004526,30]
[407956335,1772926247221,-150.0,0.0004526,60]
[407956336,1772926247233,-300.0,0.0004526,60]
[407956337,1772926247243,-250.0,0.0004526,2]
[407956338,1772926247252,-150.0,0.00045315,60]
[407956339,1772926247262,-500.0,0.00045315,60]
[407956340,1772926247274,-500.0,0.00045315,60]
[407956341,1772926247284,-500.0,0.00045315,60]
[407956342,1772926247294,-200.0,0.00045315,60]
[407956343,1772926247303,-150.0,0.00045315,30]
[407956344,1772926247313,-150.0,0.00045315,60]
[407956345,1772926247322,-1043.0,0.00045335,120]
[407956346,1772926247335,-200.0,0.0004537,60]
[407956347,1772926247345,-500.0,0.0004537,60]
[407956348,1772926247355,-500.0,0.0004537,60]
[407956349,1772926247366,-179.0,0.0004537,60]
[407956350,1772926247375,-500.0,0.00045425,60]
[407956351,1772926247384,-500.0,0.00045479,120]
[407956352,1772926247394,-500.0,0.0004548,60]
[407956353,1772926247403,-1244.87,0.00045597,120]
[407956354,1772926247413,-500.0,0.0004589,120]
[407956355,1772926247423,-5000.0,0.000459,30]
[407956356,1772926247432,-4500.0,0.00046,30]
[407956357,1772926247442,-1043.0,0.00046026,120]
[407956358,1772926247451,-1059.3377141,0.00046116,2]
[407956359,1772926247461,-1852.83573048,0.00046139,18]
[407956360,1772926247471,-1852.83573048,0.00046139,18]
[407956361,1772926247481,-26519.64151612,0.00046216,15]
[407956362,1772926247491,-500.0,0.00046301,120]
[407956363,1772926247500,-24304.88,0.00046347,6]
[407956364,1772926247510,-150.0,0.00046495,120]
[407956365,1772926247519,-626.44,0.00046549,120]
[407956366,1772926247531,-504.0,0.00046647,29]
[407956367,1772926247540,-1852.83573048,0.00046694,18]
[407956368,1772926247551,-500.0,0.00046712,120]
[407956369,1772926247560,-1043.0,0.00046717,120]
[407956370,1772926247570,-150.1,0.00046807,3]
[407956371,1772926247580,-150.1,0.00046807,3]
[407956372,1772926247591,-373.080728,0.0004684,120]
[407956373,1772926247600,-223.0,0.000469,30]
[407956374,1772926247610,-737.28,0.00046979,6]
[407956375,1772926247620,-500.0,0.00047123,120]
[407956376,1772926247631,-151.0,0.00047139,60]
[407956377,1772926247643,-300.0,0.00047139,120]
[407956378,1772926247653,-500.0,0.00047139,120]
[407956379,1772926247663,-507.72825556,0.00047139,30]
[407956380,1772926247672,-895.19,0.00047139,22]
[407956381,1772926247682,-895.19,0.00047139,22]
[407956382,1772926247691,-895.19,0.00047139,22]
[407956383,1772926247701,-895.19,0.00047139,22]
[407956384,1772926247711,-895.19,0.00047139,22]
[407956385,1772926247720,-895.19,0.00047139,22]
[407956386,1772926247730,-895.19,0.00047139,22]
[407956387,1772926247740,-895.19,0.00047139,22]
[407956388,1772926247749,-895.19,0.00047139,22]
[407956389,1772926247759,-895.19,0.00047139,22]
[407956390,1772926247768,-895.19,0.00047139,22]
[407956391,1772926247778,-895.19,0.00047139,22]
[407956392,1772926247787,-895.19,0.00047139,22]
[407956393,1772926247796,-895.19,0.00047139,22]
[407956394,1772926247805,-895.19,0.00047139,22]
[407956395,1772926247815,-895.19,0.00047139,22]
[407956396,1772926247824,-895.19,0.00047139,22]
[407956397,1772926247835,-895.19,0.00047139,22]
[407956398,1772926247844,-895.19,0.00047139,22]
[407956399,1772926247854,-895.19,0.00047139,22]
[407956400,1772926247864,-895.19,0.00047139,22]
[407956401,1772926247873,-895.19,0.00047139,22]
[407956402,1772926247882,-895.19,0.00047139,22]
[407956403,1772926247892,-895.41358924,0.00047139,22]
[407956404,1772926247902,-252.67522445,0.00047139,120]
[407956405,1772926247912,-200.0,0.00047139,120]
[407956406,1772926247922,-3432.01,0.00047139,120]
[407956407,1772926247932,-3432.01,0.00047139,120]
[407956408,1772926247942,-3432.01,0.00047139,120]
[407956409,1772926247953,-3432.01,0.00047139,120]
[407956410,1772926247963,-3432.01,0.00047139,120]
[407956411,1772926247974,-3432.01,0.00047139,120]
[407956412,1772926247985,-3432.01,0.00047139,120]
[407956413,1772926247995,-3432.01,0.00047139,120]
[407956414,1772926248004,-3432.01,0.00047139,120]
[407956415,1772926248014,-3432.01,0.00047139,120]
[407956416,1772926248026,-3432.01,0.00047139,120]
[407956417,1772926248035,-3432.01,0.00047139,120]
[407956418,1772926248045,-3432.01,0.00047139,120]
[407956419,1772926248055,-3432.01,0.00047139,120]
[407956420,1772926248065,-3432.01,0.00047139,120]
[407956421,1772926248076,-3432.01,0.00047139,120]
[407956422,1772926248088,-3432.01,0.00047139,120]
[407956423,1772926248099,-3432.01,0.00047139,120]
[407956424,1772926248110,-3432.01,0.00047139,120]
[407956425,1772926248121,-3432.01,0.00047139,120]
[407956426,1772926248131,-3432.01,0.00047139,120]
[407956427,1772926248141,-3432.01,0.00047139,120]
[407956428,1772926248151,-3432.01,0.00047139,120]
[407956429,1772926248160,-3432.23061106,0.00047139,120]
[407956430,1772926248169,-1188.94,0.00047139,30]
[407956431,1772926248179,-1188.94,0.00047139,30]
[407956432,1772926248188,-1188.94,0.00047139,30]
[407956433,1772926248199,-1188.94,0.00047139,30]
[407956434,1772926248210,-1188.94,0.00047139,30]
[407956435,1772926248221,-1188.94,0.00047139,30]
[407956436,1772926248235,-1188.94,0.00047139,30]
[407956437,1772926248244,-1188.94,0.00047139,30]
[407956438,1772926248254,-1188.94,0.00047139,30]
[407956439,1772926248263,-1188.94,0.00047139,30]
[407956440,1772926248272,-1188.94,0.00047139,30]
[407956441,1772926248283,-1188.94,0.00047139,30]
[407956442,1772926248293,-1188.94,0.00047139,30]
[407956443,1772926248303,-1188.94,0.00047139,30]
[407956444,1772926248312,-1188.94,0.00047139,30]
[407956445,1772926248321,-1188.94,0.00047139,30]
[407956446,1772926248330,-1188.94,0.00047139,30]
[407956447,1772926248340,-1188.94,0.00047139,30]
[407956448,1772926248349,-1188.94,0.00047139,30]
[407956449,1772926248358,-1188.94,0.00047139,30]
[407956450,1772926248367,-1188.94,0.00047139,30]
[407956451,1772926248376,-1188.94,0.00047139,30]
[407956452,1772926248385,-1188.94,0.00047139,30]
[407956453,1772926248394,-1189.06330114,0.00047139,30]
[407956454,1772926248404,-150.0,0.00047194,30]
[407956455,1772926248414,-245.355771,0.00047198,30]
[407956456,1772926248423,-157.1,0.000472,14]
[407956457,1772926248432,-1059.3377141,0.00047307,2]
[407956458,1772926248441,-1043.0,0.00047408,120]
[407956459,1772926248451,-500.0,0.00047534,120]
[407956460,1772926248461,-3179.86,0.000478,120]
[407956461,1772926248737,-70111.63,0.00047929,2]
[407956462,1772926248746,-500.0,0.00047945,120]
[407956463,1772926248756,-2804.0,0.00047984,16]
[407956464,1772926248765,-185.0,0.00048,90]
[407956465,1772926248774,-1001.45933134,0.0004802,50]
[407956466,1772926248783,-1058.47571884,0.0004802,50]
[407956467,1772926248792,-1051.75968642,0.0004802,50]
[407956468,1772926248801,-150.0,0.00048348,120]
[407956469,1772926248810,-171.01,0.00048348,120]
[407956470,1772926248820,-500.0,0.00048356,60]
[407956471,1772926248829,-500.0,0.00048356,60]
[407956472,1772926248838,-500.0,0.00048356,60]
[407956473,1772926248847,-500.0,0.00048356,120]
[407956474,1772926248857,-185.0,0.00048356,90]
[407956475,1772926248866,-2802.0,0.0004844,31]
[407956476,1772926248875,-1059.3377141,0.00048497,2]
[407956477,1772926248884,-1584.23605763,0.000485,2]
[407956478,1772926248893,-560.36,0.000485,14]
[407956479,1772926248902,-1244.87,0.00048532,120]
[407956480,1772926248913,-4095.80130353,0.0004874,120]
[407956481,1772926248923,-500.0,0.00048767,120]
[407956482,1772926248933,-150.0,0.0004882,120]
[407956483,1772926248944,-2000.0,0.000489,2]
[407956484,1772926248954,-202.54,0.00048978,30]
[407956485,1772926248964,-632.83,0.00048978,30]
[407956486,1772926248973,-563.2,0.00048978,30]
[407956487,1772926248982,-181.98,0.00048978,30]
[407956488,1772926248991,-474.08,0.00048978,30]
[407956489,1772926249001,-237.41052374,0.00048986,30]
[407956490,1772926249011,-39729.83796681,0.00048989,15]
[407956491,1772926249020,-656.43829161,0.00048989,2]
[407956492,1772926249029,-893.14132914,0.00048989,2]
[407956493,1772926249039,-3708.82164898,0.00048989,2]
[407956494,1772926249048,-150.0,0.00049,120]
[407956495,1772926249057,-150.0,0.00049,120]
[407956496,1772926249066,-150.0,0.00049,120]
[407956497,1772926249075,-150.0,0.00049,120]
[407956498,1772926249084,-500.0,0.00049,30]
[407956499,1772926249093,-500.0,0.00049,30]
[407956500,1772926249103,-500.0,0.00049,30]
[407956501,1772926249111,-500.0,0.00049,30]
[407956502,1772926249121,-500.0,0.00049,30]
[407956503,1772926249130,-500.0,0.00049,30]
[407956504,1772926249138,-500.0,0.00049,30]
[407956505,1772926249147,-328.64674045,0.00049,30]
[407956506,1772926249156,-138515.40996307,0.00049,3]
[407956507,1772926249165,-765345.26296349,0.00049,3]
[407956508,1772926249174,-752.41,0.00049089,30]
[407956509,1772926249183,-752.41,0.00049089,30]
[407956510,1772926249192,-752.41,0.00049089,30]
[407956511,1772926249201,-752.41,0.00049089,30]
[407956512,1772926249211,-700.0,0.00049144,13]
[407956513,1772926249220,-400.51528796,0.00049178,120]
[407956514,1772926249232,-3179.86,0.00049232,120]
[407956515,1772926249242,-1584.23605763,0.00049244,2]
[407956516,1772926249251,-800.0,0.00049315,32]
[407956517,1772926249261,-752.41,0.00049363,60]
[407956518,1772926249271,-752.41,0.00049363,60]
[407956519,1772926249280,-656.4382916,0.00049445,2]
[407956520,1772926249290,-893.14132913,0.00049445,2]
[407956521,1772926249299,-3708.82164898,0.00049445,2]
[407956522,1772926249309,-500.0,0.00049452,60]
[407956523,1772926249318,-500.0,0.00049452,60]
[407956524,1772926249327,-500.0,0.00049452,60]
[407956525,1772926249336,-1852.83573048,0.00049596,21]
[407956526,1772926249345,-157.1,0.000496,30]
[407956527,1772926249356,-700.0,0.000496,18]
[407956528,1772926249366,-752.41,0.00049637,60]
[407956529,1772926249375,-752.41,0.00049637,60]
[407956530,1772926249384,-4654.60097481,0.00049688,28]
[407956531,1772926249393,-533.68146344,0.00049688,120]
[407956532,1772926249402,-1059.3377141,0.00049688,2]
[407956533,1772926249411,-26519.64151612,0.00049688,15]
[407956534,1772926249420,-191.91809501,0.000497,7]
[407956535,1772926249429,-700.0,0.000497,18]
[407956536,1772926249438,-151.0,0.00049785,120]
[407956537,1772926249447,-151.0,0.00049785,120]
[407956538,1772926249456,-151.0,0.00049785,120]